{"text_format":"1","workbook":"xlsx","n_sheets":1,"sheets":["診療情報提供書"],"not_rendered":{"charts":0,"images":2,"macros":1,"external_links":0,"defined_names":1,"comments":0,"pivot_tables":0},"unopened":[],"bounds":{"document_bytes":16777216,"sheet_cells":100000,"rows_first":2000,"rows_last":500,"rows_between":2000,"halvings":0,"cell_chars":16384,"cell_head_chars":4096},"cells_cut":0,"cells_raw":0,"read":"whole","date_system":"1900"}

{"sheet":"診療情報提供書","index":0,"n_rows":161,"n_cols":138,"rows_kept":161,"cut":false,"hidden":false,"merged":[[0,0,0,38],[1,0,7,38],[7,49,7,56],[7,57,7,58],[10,33,11,65],[10,0,10,32],[11,5,11,10],[11,0,11,4],[26,36,27,37],[7,40,7,48],[7,65,7,68],[7,59,7,62],[7,63,7,64],[11,24,11,32],[11,11,11,13],[11,22,11,23],[11,14,11,21],[28,0,29,9],[25,10,25,38],[29,31,29,33],[18,78,19,79],[18,80,19,96],[18,97,19,98],[35,0,35,9],[25,0,25,9],[26,102,28,102],[19,102,21,102],[26,0,27,9],[29,22,29,30],[29,34,29,36],[17,105,18,105],[15,104,16,104],[17,104,18,104],[26,103,28,103],[25,61,25,68],[15,105,16,105],[21,100,24,100],[19,100,20,100],[21,33,23,68],[15,103,18,103],[19,104,20,104],[21,104,22,104],[23,104,24,104],[25,104,26,104],[25,51,25,52],[13,24,16,45],[25,53,25,58],[26,10,27,35],[30,0,34,9],[7,69,7,71],[33,97,34,98],[33,74,34,96],[7,87,7,90],[7,91,7,92],[15,102,18,102],[15,101,16,101],[17,101,18,101],[15,100,16,100],[17,100,18,100],[10,66,11,99],[7,97,7,99],[29,95,29,99],[29,67,29,73],[29,79,29,83],[29,84,29,85],[19,101,20,101],[21,101,24,101],[18,10,19,23],[7,93,7,96],[21,0,23,23],[29,37,29,39],[29,46,29,50],[29,86,29,92],[36,10,43,99],[29,40,29,42],[35,67,35,99],[44,97,44,98],[44,94,44,96],[38,102,39,102],[26,46,28,99],[25,46,25,49],[25,59,25,60],[29,93,29,94],[44,92,44,93],[44,86,44,91],[35,65,35,66],[29,51,29,55],[29,56,29,57],[29,43,29,45],[29,74,29,77],[29,65,29,66],[35,41,35,42],[35,43,35,64],[33,72,34,73],[36,102,37,102],[29,58,29,64],[44,0,45,9],[52,0,52,99],[50,98,50,99],[50,88,50,89],[42,103,43,103],[36,103,37,103],[38,103,39,103],[40,102,41,102],[42,102,43,102],[40,103,41,103],[36,0,43,9],[51,0,51,9],[50,90,50,97],[50,22,50,29],[49,30,49,31],[45,97,45,98],[45,45,45,64],[45,92,45,93],[45,86,45,91],[56,0,56,51],[45,38,45,39],[45,27,45,32],[51,20,51,21],[50,20,50,21],[46,33,46,39],[51,52,51,59],[51,22,51,29],[49,33,49,39],[50,33,50,39],[51,33,51,39],[49,22,49,29],[54,0,54,75],[48,0,48,9],[49,20,49,21],[46,20,46,21],[125,91,125,92],[125,93,125,96],[125,97,125,99],[60,0,66,38],[66,40,66,48],[66,49,66,56],[69,0,69,32],[69,33,70,65],[69,66,70,99],[66,97,66,99],[70,5,70,10],[70,11,70,13],[70,14,70,21],[70,22,70,23],[70,24,70,32],[88,40,88,42],[88,43,88,45],[84,0,84,9],[125,69,125,71],[125,87,125,90],[70,0,70,4],[66,63,66,64],[109,0,109,9],[109,20,109,21],[147,58,147,64],[147,65,147,66],[147,67,147,73],[129,11,129,13],[129,14,129,21],[129,22,129,23],[129,24,129,32],[128,66,129,99],[136,97,137,98],[131,56,134,99],[129,0,129,4],[125,57,125,58],[125,59,125,62],[119,0,125,38],[125,40,125,48],[125,49,125,56],[139,33,141,68],[125,63,125,64],[125,65,125,68],[129,5,129,10],[151,0,151,27],[151,29,151,56],[152,0,152,27],[152,29,152,56],[156,0,156,56],[147,37,147,39],[147,40,147,42],[147,43,147,45],[147,46,147,50],[147,51,147,55],[146,0,147,9],[147,22,147,30],[147,31,147,33],[147,34,147,36],[144,46,146,99],[147,84,147,85],[147,86,147,92],[147,93,147,94],[147,95,147,99],[154,0,154,56],[155,0,155,56],[147,74,147,77],[147,79,147,83],[147,56,147,57],[137,100,138,100],[137,101,138,101],[137,102,138,102],[133,100,134,100],[133,101,134,101],[133,102,136,102],[139,0,141,23],[144,103,146,103],[143,59,143,60],[143,61,143,68],[133,103,136,103],[144,102,146,102],[131,24,134,45],[136,10,137,23],[136,78,137,79],[136,80,137,96],[143,0,143,9],[143,10,143,38],[143,46,143,49],[143,51,143,52],[143,53,143,58],[144,0,145,9],[144,10,145,35],[144,36,145,37],[109,33,109,39],[108,0,108,9],[108,33,108,39],[104,27,104,32],[104,33,104,34],[104,35,104,37],[104,38,104,39],[105,20,105,21],[105,25,105,32],[105,33,105,39],[108,20,108,21],[108,22,108,29],[108,30,108,31],[109,22,109,29],[95,0,102,9],[103,0,104,9],[107,0,107,9],[110,20,110,21],[110,30,110,31],[101,102,102,102],[101,103,102,103],[95,10,102,99],[103,10,104,16],[103,27,103,32],[103,33,103,34],[103,35,103,37],[103,38,103,39],[103,45,103,64],[103,65,103,74],[103,86,103,91],[103,92,103,93],[103,94,103,96],[103,97,103,98],[110,33,110,39],[95,102,96,102],[95,103,96,103],[97,102,98,102],[110,0,110,9],[74,105,75,105],[76,100,77,100],[76,101,77,101],[76,104,77,104],[76,105,77,105],[74,101,75,101],[74,104,75,104],[74,100,75,100],[80,0,82,23],[85,0,86,9],[85,10,86,35],[85,36,86,37],[85,46,87,99],[85,103,87,103],[85,102,87,102],[87,0,88,9],[88,22,88,30],[88,31,88,33],[88,34,88,36],[88,74,88,77],[88,79,88,83],[88,84,88,85],[88,95,88,99],[88,37,88,39],[88,93,88,94],[97,103,98,103],[99,102,100,102],[99,103,100,103],[104,45,104,64],[104,65,104,74],[104,86,104,91],[84,104,85,104],[13,104,14,104],[13,105,14,105],[72,24,75,45],[19,105,20,105],[21,105,22,105],[23,105,24,105],[25,105,26,105],[80,105,81,105],[13,56,16,99],[84,105,85,105],[84,10,84,38],[84,46,84,49],[84,51,84,52],[84,53,84,58],[84,59,84,60],[84,61,84,68],[104,94,104,96],[66,59,66,62],[80,104,81,104],[72,56,75,99],[80,33,82,68],[51,50,51,51],[44,10,45,16],[44,45,44,64],[48,63,48,70],[78,100,79,100],[78,101,79,101],[78,102,79,102],[74,102,77,102],[74,103,77,103],[44,33,44,34],[50,30,50,31],[45,94,45,96],[45,33,45,34],[77,97,78,98],[45,35,45,37],[51,30,51,31],[59,0,59,38],[49,0,49,9],[49,63,49,70],[50,0,50,9],[108,50,108,51],[108,52,108,59],[94,0,94,9],[88,51,88,55],[88,56,88,57],[88,58,88,64],[88,65,88,66],[88,67,88,73],[88,86,88,92],[88,46,88,50],[89,0,93,9],[94,41,94,42],[94,43,94,64],[94,65,94,66],[94,67,94,99],[92,97,93,98],[92,74,93,96],[92,72,93,73],[108,60,108,61],[107,33,107,39],[107,63,107,70],[106,10,106,48],[108,63,108,70],[104,92,104,93],[139,104,140,104],[139,105,140,105],[109,88,109,89],[109,90,109,97],[109,98,109,99],[110,50,110,51],[110,52,110,59],[110,60,110,61],[109,63,109,70],[111,0,111,99],[113,0,113,75],[115,0,115,51],[118,0,118,38],[133,104,134,104],[135,100,136,100],[135,101,136,101],[135,104,136,104],[133,105,134,105],[135,105,136,105],[128,0,128,32],[128,33,129,65],[110,63,110,70],[110,22,110,29],[109,30,109,31],[104,97,104,98],[66,65,66,68],[66,69,66,71],[44,38,44,39],[44,35,44,37],[51,63,51,70],[49,60,49,61],[51,60,51,61],[45,65,45,74],[49,50,49,51],[47,10,47,48],[49,52,49,59],[48,33,48,39],[44,65,44,74],[50,63,50,70],[44,27,44,32],[77,10,78,23],[77,78,78,79],[77,80,78,96],[66,57,66,58],[46,25,46,32],[66,87,66,90],[66,91,66,92],[66,93,66,96],[106,92,106,93],[106,94,106,96],[106,97,106,98],[46,49,46,71],[105,49,105,71],[105,0,106,9],[105,22,105,24],[106,49,106,54],[106,55,106,71],[106,72,106,80],[106,81,106,86],[106,87,106,88],[106,89,106,91],[46,0,47,9],[46,22,46,24],[47,49,47,54],[47,72,47,80],[47,97,47,98],[47,92,47,93],[47,94,47,96],[47,89,47,91],[47,87,47,88],[47,81,47,86],[47,55,47,71]]}
["この欄は貴院IDのご記入・エンボス印字等にご利用ください。",null,null,null,null,null,null,null,null,null,null,null,null,null,null,null,null,null,null,null,null,null,null,null,null,null,null,null,null,null,null,null,null,null,null,null,null,null,null,null,null,null,null,null,null,null,null,null,null,null,null,null,null,null,null,null,null,null,null,null,null,null,null,null,null,null,null,null,null,null,null,null,null,null,null,null,null,null,null,null,null,null,null,null,null,null,null,null,null,null,null,null,null,null,null,null,null,null,null,"＜１枚目＞",null,null,"PET/CT","CT不要","CT（単純）","脳","頸部","胸部","上腹部","骨盤部","その他","受診結果DISK"]
[null,null,null,null,null,null,null,null,null,null,null,null,null,null,null,null,null,null,null,null,null,null,null,null,null,null,null,null,null,null,null,null,null,null,null,null,null,null,null,null,null,null,null,null,null,null,null,null,null,null,null,null,null,null,null,null,null,null,null,null,null,null,null,null,null,null,null,null,null,null,null,null,null,null,null,null,null,null,null,null,null,null,null,null,null,null,null,null,null,null,null,null,null,null,null,null,null,null,null,"ゆうあいクリニック台場宛",null,null,true,null,null,null,null,null,null,null,null,true]
[]
[null,null,null,null,null,null,null,null,null,null,null,null,null,null,null,null,null,null,null,null,null,null,null,null,null,null,null,null,null,null,null,null,null,null,null,null,null,null,null,null,"診療情報提供書（画像診断依頼書）",null,null,null,null,null,null,null,null,null,null,null,null,null,null,null,null,null,null,null,null,null,null,null,null,null,null,null,null,null,null,null,null,null,null,null,null,null,null,null,null,null,null,null,null,null,null,null,null,null,null,null,null,null,null,null,null,null,null,null,null,null,"肺癌","大腸癌","乳癌","頭頸部癌","悪性リンパ腫","白血病","膵癌","子宮頸癌","子宮体癌","卵巣癌","胆嚢癌","胆管癌","肝細胞癌","食道癌","胃癌","GIST","前立腺癌","腎癌","膀胱癌","皮膚癌","軟部組織腫瘍","脳腫瘍","心筋サルコイドーシス","ヘパリンの使用可/使用不可","その他","病期診断","転移再発診断","その他","CT","MRI","US","MMG","RI","単純X線","その他","無し"]
[null,null,null,null,null,null,null,null,null,null,null,null,null,null,null,null,null,null,null,null,null,null,null,null,null,null,null,null,null,null,null,null,null,null,null,null,null,null,null,null,null,"ゆうあいクリニック台場　片山　敦　先生"]
[null,null,null,null,null,null,null,null,null,null,null,null,null,null,null,null,null,null,null,null,null,null,null,null,null,null,null,null,null,null,null,null,null,null,null,null,null,null,null,null,null,"以下の患者様の画像診断をお願い申し上げます。"]
[null,null,null,null,null,null,null,null,null,null,null,null,null,null,null,null,null,null,null,null,null,null,null,null,null,null,null,null,null,null,null,null,null,null,null,null,null,null,null,null,null,null,null,null,null,null,null,null,null,null,null,null,null,null,null,null,null,null,null,null,null,null,null,null,null,null,null,null,null,null,null,null,null,null,null,null,null,null,null,null,null,null,null,null,null,null,null,null,null,null,null,null,null,null,null,null,null,null,null,null,null,null,"-","性別","生年月日","手術歴1","手術歴2","化学療法","放射線治療","糖 尿 病","3ヶ月以内のG-CSFの使用","ﾍﾟｰｽﾒｰｶｰ","体内金属","人工肛門","気管切開","妊　娠","感染症","喘　息","ｱﾚﾙｷﾞｰ","現在状況","30分静止","経口摂取","自力歩行"]
[null,null,null,null,null,null,null,null,null,null,null,null,null,null,null,null,null,null,null,null,null,null,null,null,null,null,null,null,null,null,null,null,null,null,null,null,null,null,null,null,"予約日時：",null,null,null,null,null,null,null,null,null,null,null,null,null,null,null,null,"年",null,null,null,null,null,"月",null,null,null,null,null,"日",null,null,null,null,null,null,null,null,null,null,null,null,null,null,null,null,null,null,null,null,null,"時",null,null,null,null,null,"分"]
[]
["貴医療機関名",null,null,null,null,null,null,null,null,null,null,null,null,null,null,null,null,null,null,null,null,null,null,null,null,null,null,null,null,null,null,null,null,"診療科\n\n",null,null,null,null,null,null,null,null,null,null,null,null,null,null,null,null,null,null,null,null,null,null,null,null,null,null,null,null,null,null,null,null,"担当医師（フルネーム）\n\n"]
[]
["TEL:",null,null,null,null,null,null,null,null,null,null,"（",null,null,null,null,null,null,null,null,null,null,"）"]
[]
[null,null,null,null,null,null,null,null,null,null,null,null,null,null,null,null,null,null,null,null,null,null,null,null,"（頭頂部から大腿基部まで）",null,null,null,null,null,null,null,null,null,null,null,null,null,null,null,null,null,null,null,null,null,null,null,null,null,null,null,null,null,null,null,"※PET/CT装置の特性上、吸収補正は低線量CTで減弱補正を行います。 "]
[]
[]
[]
[]
[null,null,null,null,null,null,null,null,null,null,"※複数部位選択可能",null,null,null,null,null,null,null,null,null,null,null,null,null,null,null,null,null,null,null,null,null,null,null,null,null,null,null,null,null,null,null,null,null,null,null,null,null,null,null,null,null,null,null,null,null,null,null,null,null,null,null,null,null,null,null,null,null,null,null,null,null,null,null,null,null,null,null,"（",null,null,null,null,null,null,null,null,null,null,null,null,null,null,null,null,null,null,"）"]
[]
[]
["受診結果DISK",null,null,null,null,null,null,null,null,null,null,null,null,null,null,null,null,null,null,null,null,null,null,null,null,null,null,null,null,null,null,null,null,"※ご不要の場合にはご連絡ください。"]
[]
[]
[]
["ふりがな",null,null,null,null,null,null,null,null,null,null,null,null,null,null,null,null,null,null,null,null,null,null,null,null,null,null,null,null,null,null,null,null,null,null,null,null,null,null,null,"性　別",null,null,null,null,null,"住所",null,null,null,null,"〒",null,null,null,null,null,null,null,"―"]
["患者様名",null,null,null,null,null,null,null,null,null,null,null,null,null,null,null,null,null,null,null,null,null,null,null,null,null,null,null,null,null,null,null,null,null,null,null,"様"]
[]
["生年月日"]
[null,null,null,null,null,null,null,null,null,null,null,null,null,null,null,null,null,null,null,null,null,null,null,null,null,null,null,null,null,null,null,"年",null,null,null,null,null,"月",null,null,null,null,null,"日",null,null,"TEL：",null,null,null,null,null,null,null,null,null,"（",null,null,null,null,null,null,null,null,"）",null,null,null,null,null,null,null,null,"携帯：",null,null,null,null,null,null,null,null,null,"（",null,null,null,null,null,null,null,null,"）"]
["臨床診断"]
[]
[]
[null,null,null,null,null,null,null,null,null,null,null,null,null,null,null,null,null,null,null,null,null,null,null,null,null,null,null,null,null,null,null,null,null,null,null,null,null,null,null,null,null,null,null,null,null,null,null,null,null,null,null,null,null,null,null,null,null,null,null,null,null,null,null,null,null,null,null,null,null,null,null,null,"（",null,null,null,null,null,null,null,null,null,null,null,null,null,null,null,null,null,null,null,null,null,null,null,null,"）"]
[]
["検査目的",null,null,null,null,null,null,null,null,null,null,null,null,null,null,null,null,null,null,null,null,null,null,null,null,null,null,null,null,null,null,null,null,null,null,null,null,null,null,null,null,"（",null,null,null,null,null,null,null,null,null,null,null,null,null,null,null,null,null,null,null,null,null,null,null,"）",null,"※スクリーニングおよび良悪鑑別は自費となります。"]
["病理検査・\n腫瘍ﾏｰｶｰ・\n臨床経過等\n\n※必ずご記入\nください。"]
[]
[]
[]
[]
[]
[]
[]
["治 療 歴",null,null,null,null,null,null,null,null,null,"手術歴",null,null,null,null,null,null,null,null,null,null,null,null,null,null,null,null,null,null,null,null,null,null,"年",null,null,null,null,"月",null,null,"術式",null,null,null,null,null,null,null,null,null,null,null,null,null,null,null,null,null,null,null,null,null,null,null,"化学療法",null,null,null,null,null,null,null,null,null,null,null,null,null,null,null,null,null,null,null,null,null,null,null,null,null,null,"年",null,null,null,null,"月"]
[null,null,null,null,null,null,null,null,null,null,null,null,null,null,null,null,null,null,null,null,null,null,null,null,null,null,null,null,null,null,null,null,null,"年",null,null,null,null,"月",null,null,"術式",null,null,null,null,null,null,null,null,null,null,null,null,null,null,null,null,null,null,null,null,null,null,null,"放射線治療",null,null,null,null,null,null,null,null,null,null,null,null,null,null,null,null,null,null,null,null,null,null,null,null,null,null,"年",null,null,null,null,"月"]
["糖 尿 病",null,null,null,null,null,null,null,null,null,null,null,null,null,null,null,null,null,null,null,"（",null,"BS",null,null,null,null,null,null,null,null,null,null,"mg/dl）",null,null,null,null,null,null,null,null,null,null,null,null,null,null,null,"3ヶ月以内のG-CSFの使用"]
[null,null,null,null,null,null,null,null,null,null,"※糖尿病薬剤は検査当日の使用を避けてください。\n※空腹時血糖200mg/dlを超える場合はご相談ください。",null,null,null,null,null,null,null,null,null,null,null,null,null,null,null,null,null,null,null,null,null,null,null,null,null,null,null,null,null,null,null,null,null,null,null,null,null,null,"薬剤名：",null,null,null,null,null,null,null,null,null,null,null,null,null,null,null,null,null,null,null,null,null,null,"最終使用日：",null,null,null,null,null,null,null,null,null,null,null,null,null,null,"年",null,null,null,null,"月",null,null,null,null,"日"]
["ﾍﾟｰｽﾒｰｶｰ",null,null,null,null,null,null,null,null,null,null,null,null,null,null,null,null,null,null,null,null,null,null,null,null,null,null,null,null,null,null,null,null,"妊　娠",null,null,null,null,null,null,null,null,null,null,null,null,null,null,null,null,null,null,null,null,null,null,null,null,null,null,null,null,null,"現在状況"]
["体内金属",null,null,null,null,null,null,null,null,null,null,null,null,null,null,null,null,null,null,null,"（",null,null,null,null,null,null,null,null,null,"）",null,null,"感染症",null,null,null,null,null,null,null,null,null,null,null,null,null,null,null,null,"（",null,null,null,null,null,null,null,null,null,"）",null,null,"30分静止"]
["人工肛門",null,null,null,null,null,null,null,null,null,null,null,null,null,null,null,null,null,null,null,"（",null,null,null,null,null,null,null,null,null,"）",null,null,"喘　息",null,null,null,null,null,null,null,null,null,null,null,null,null,null,null,null,null,null,null,null,null,null,null,null,null,null,null,null,null,"経口摂取",null,null,null,null,null,null,null,null,null,null,null,null,null,null,null,null,null,null,null,null,null,null,null,null,"（",null,null,null,null,null,null,null,null,null,"）"]
["気管切開",null,null,null,null,null,null,null,null,null,null,null,null,null,null,null,null,null,null,null,"（",null,null,null,null,null,null,null,null,null,"）",null,null,"ｱﾚﾙｷﾞｰ",null,null,null,null,null,null,null,null,null,null,null,null,null,null,null,null,"（",null,null,null,null,null,null,null,null,null,"）",null,null,"自力歩行",null,null,null,null,null,null,null,null,null,null,null,null,null,null,null,"※自立歩行できない方は不可"]
["本診療情報提供書をご利用される場合、ゆうあいクリニックでの検査結果を直接依頼元の医療機関へ提供いたします。この取扱いについて受診者の\n同意がある場合に限り、本診療情報提供書をご利用ください。なお、特別な取扱いが必要な場合には、下記の電話番号へご連絡ください。"]
[]
["コールセンター臨床　FAX 045-548-1969 / TEL 045-540-8215"]
[]
["予約フリーダイヤル　0120-852-026"]
[]
[]
["この欄は貴院IDのご記入・エンボス印字等にご利用ください。",null,null,null,null,null,null,null,null,null,null,null,null,null,null,null,null,null,null,null,null,null,null,null,null,null,null,null,null,null,null,null,null,null,null,null,null,null,null,null,null,null,null,null,null,null,null,null,null,null,null,null,null,null,null,null,null,null,null,null,null,null,null,null,null,null,null,null,null,null,null,null,null,null,null,null,null,null,null,null,null,null,null,null,null,null,null,null,null,null,null,null,null,null,null,null,null,null,null,"＜２枚目＞"]
[{"$f":"IF(ISBLANK(A2), \"\", A2)","v":""},null,null,null,null,null,null,null,null,null,null,null,null,null,null,null,null,null,null,null,null,null,null,null,null,null,null,null,null,null,null,null,null,null,null,null,null,null,null,null,null,null,null,null,null,null,null,null,null,null,null,null,null,null,null,null,null,null,null,null,null,null,null,null,null,null,null,null,null,null,null,null,null,null,null,null,null,null,null,null,null,null,null,null,null,null,null,null,null,null,null,null,null,null,null,null,null,null,null,"ご紹介元医療機関宛"]
[]
[null,null,null,null,null,null,null,null,null,null,null,null,null,null,null,null,null,null,null,null,null,null,null,null,null,null,null,null,null,null,null,null,null,null,null,null,null,null,null,null,"診療情報提供書（画像診断依頼書）"]
[null,null,null,null,null,null,null,null,null,null,null,null,null,null,null,null,null,null,null,null,null,null,null,null,null,null,null,null,null,null,null,null,null,null,null,null,null,null,null,null,null,"ゆうあいクリニック台場　片山　敦　先生"]
[null,null,null,null,null,null,null,null,null,null,null,null,null,null,null,null,null,null,null,null,null,null,null,null,null,null,null,null,null,null,null,null,null,null,null,null,null,null,null,null,null,"以下の患者様の画像診断をお願い申し上げます。"]
[]
[null,null,null,null,null,null,null,null,null,null,null,null,null,null,null,null,null,null,null,null,null,null,null,null,null,null,null,null,null,null,null,null,null,null,null,null,null,null,null,null,"予約日時：",null,null,null,null,null,null,null,null,{"$f":"IF(ISBLANK(AX8), \"\", AX8)","v":""},null,null,null,null,null,null,null,"年",null,{"$f":"IF(ISBLANK(BH8), \"\", BH8)","v":""},null,null,null,"月",null,{"$f":"IF(ISBLANK(BN8), \"\", BN8)","v":""},null,null,null,"日",null,null,null,null,null,null,null,null,null,null,null,null,null,null,null,null,null,{"$f":"IF(ISBLANK(CJ8), \"\", CJ8)","v":""},null,null,null,"時",null,{"$f":"IF(ISBLANK(CP8), \"\", CP8)","v":""},null,null,null,"分"]
[]
["貴医療機関名",null,null,null,null,null,null,null,null,null,null,null,null,null,null,null,null,null,null,null,null,null,null,null,null,null,null,null,null,null,null,null,null,"診療科\n\n",null,null,null,null,null,null,null,null,null,null,null,null,null,null,null,null,null,null,null,null,null,null,null,null,null,null,null,null,null,null,null,null,"担当医師（フルネーム）\n\n"]
[{"$f":"IF(ISBLANK(A11), \"\", A11)","v":""},null,null,null,null,null,null,null,null,null,null,null,null,null,null,null,null,null,null,null,null,null,null,null,null,null,null,null,null,null,null,null,null,{"$f":"IF(ISBLANK(AH11), \"\", AH11)","v":""},null,null,null,null,null,null,null,null,null,null,null,null,null,null,null,null,null,null,null,null,null,null,null,null,null,null,null,null,null,null,null,null,{"$f":"IF(ISBLANK(BO11), \"\", BO11)","v":""}]
["TEL:",null,null,null,null,{"$f":"IF(ISBLANK(F12), \"\", F12)","v":""},null,null,null,null,null,"（",null,null,{"$f":"IF(ISBLANK(O12), \"\", O12)","v":""},null,null,null,null,null,null,null,"）",null,{"$f":"IF(ISBLANK(Y12), \"\", Y12)","v":""}]
[]
[null,null,null,null,null,null,null,null,null,null,null,null,null,null,null,null,null,null,null,null,null,null,null,null,"（頭頂部から大腿基部まで）",null,null,null,null,null,null,null,null,null,null,null,null,null,null,null,null,null,null,null,null,null,null,null,null,null,null,null,null,null,null,null,"※PET/CT装置の特性上、吸収補正は低線量CTで減弱補正を行います。 "]
[]
[]
[]
[]
[null,null,null,null,null,null,null,null,null,null,"※複数部位選択可能",null,null,null,null,null,null,null,null,null,null,null,null,null,null,null,null,null,null,null,null,null,null,null,null,null,null,null,null,null,null,null,null,null,null,null,null,null,null,null,null,null,null,null,null,null,null,null,null,null,null,null,null,null,null,null,null,null,null,null,null,null,null,null,null,null,null,null,"（",null,{"$f":"IF(ISBLANK(CC19), \"\", CC19)","v":""},null,null,null,null,null,null,null,null,null,null,null,null,null,null,null,null,"）"]
[]
[]
["受診結果DISK",null,null,null,null,null,null,null,null,null,null,null,null,null,null,null,null,null,null,null,null,null,null,null,null,null,null,null,null,null,null,null,null,"※ご不要の場合にはご連絡ください。"]
[]
[]
[]
["ふりがな",null,null,null,null,null,null,null,null,null,{"$f":"IF(ISBLANK(K26), \"\", K26)","v":""},null,null,null,null,null,null,null,null,null,null,null,null,null,null,null,null,null,null,null,null,null,null,null,null,null,null,null,null,null,"性　別",null,null,null,null,null,"住所",null,null,null,null,"〒",null,{"$f":"IF(ISBLANK(BB26), \"\", BB26)","v":""},null,null,null,null,null,"―",null,{"$f":"IF(ISBLANK(BJ26), \"\", BJ26)","v":""}]
["患者様名",null,null,null,null,null,null,null,null,null,{"$f":"IF(ISBLANK(K27), \"\", K27)","v":""},null,null,null,null,null,null,null,null,null,null,null,null,null,null,null,null,null,null,null,null,null,null,null,null,null,"様",null,null,null,null,null,null,null,null,null,{"$f":"IF(ISBLANK(AU27), \"\", AU27)","v":""}]
[]
["生年月日"]
[null,null,null,null,null,null,null,null,null,null,null,null,null,null,null,null,null,null,null,null,null,null,{"$f":"IF(ISBLANK(W30), \"\", W30)","v":""},null,null,null,null,null,null,null,null,"年",null,null,{"$f":"IF(ISBLANK(AI30), \"\", AI30)","v":""},null,null,"月",null,null,{"$f":"IF(ISBLANK(AO30), \"\", AO30)","v":""},null,null,"日",null,null,"TEL：",null,null,null,null,{"$f":"IF(ISBLANK(AZ30), \"\", AZ30)","v":""},null,null,null,null,"（",null,{"$f":"IF(ISBLANK(BG30), \"\", BG30)","v":""},null,null,null,null,null,null,"）",null,{"$f":"IF(ISBLANK(BP30), \"\", BP30)","v":""},null,null,null,null,null,null,"携帯：",null,null,null,null,{"$f":"IF(ISBLANK(CB30), \"\", CB30)","v":""},null,null,null,null,"（",null,{"$f":"IF(ISBLANK(CI30), \"\", CI30)","v":""},null,null,null,null,null,null,"）",null,{"$f":"IF(ISBLANK(CR30), \"\", CR30)","v":""}]
["臨床診断"]
[]
[]
[null,null,null,null,null,null,null,null,null,null,null,null,null,null,null,null,null,null,null,null,null,null,null,null,null,null,null,null,null,null,null,null,null,null,null,null,null,null,null,null,null,null,null,null,null,null,null,null,null,null,null,null,null,null,null,null,null,null,null,null,null,null,null,null,null,null,null,null,null,null,null,null,"（",null,{"$f":"IF(ISBLANK(BW34), \"\", BW34)","v":""},null,null,null,null,null,null,null,null,null,null,null,null,null,null,null,null,null,null,null,null,null,null,"）"]
[]
["検査目的",null,null,null,null,null,null,null,null,null,null,null,null,null,null,null,null,null,null,null,null,null,null,null,null,null,null,null,null,null,null,null,null,null,null,null,null,null,null,null,null,"（",null,{"$f":"IF(ISBLANK(AR36), \"\", AR36)","v":""},null,null,null,null,null,null,null,null,null,null,null,null,null,null,null,null,null,null,null,null,null,"）",null,"※スクリーニングおよび良悪鑑別は自費となります。"]
["病理検査・\n腫瘍ﾏｰｶｰ・\n臨床経過等\n\n※必ずご記入\nください。",null,null,null,null,null,null,null,null,null,{"$f":"IF(ISBLANK(K37), \"\", K37)","v":""}]
[]
[]
[]
[]
[]
[]
[]
["治 療 歴",null,null,null,null,null,null,null,null,null,"手術歴",null,null,null,null,null,null,null,null,null,null,null,null,null,null,null,null,{"$f":"IF(ISBLANK(AB45), \"\", AB45)","v":""},null,null,null,null,null,"年",null,{"$f":"IF(ISBLANK(AJ45), \"\", AJ45)","v":""},null,null,"月",null,null,"術式",null,null,null,{"$f":"IF(ISBLANK(AT45), \"\", AT45)","v":""},null,null,null,null,null,null,null,null,null,null,null,null,null,null,null,null,null,null,null,"化学療法",null,null,null,null,null,null,null,null,null,null,null,null,null,null,null,null,null,null,null,null,{"$f":"IF(ISBLANK(CI45), \"\", CI45)","v":""},null,null,null,null,null,"年",null,{"$f":"IF(ISBLANK(CQ45), \"\", CQ45)","v":""},null,null,"月"]
[null,null,null,null,null,null,null,null,null,null,null,null,null,null,null,null,null,null,null,null,null,null,null,null,null,null,null,{"$f":"IF(ISBLANK(AB46), \"\", AB46)","v":""},null,null,null,null,null,"年",null,{"$f":"IF(ISBLANK(AJ46), \"\", AJ46)","v":""},null,null,"月",null,null,"術式",null,null,null,{"$f":"IF(ISBLANK(AT46), \"\", AT46)","v":""},null,null,null,null,null,null,null,null,null,null,null,null,null,null,null,null,null,null,null,"放射線治療",null,null,null,null,null,null,null,null,null,null,null,null,null,null,null,null,null,null,null,null,{"$f":"IF(ISBLANK(CI46), \"\", CI46)","v":""},null,null,null,null,null,"年",null,{"$f":"IF(ISBLANK(CQ46), \"\", CQ46)","v":""},null,null,"月"]
["糖 尿 病",null,null,null,null,null,null,null,null,null,null,null,null,null,null,null,null,null,null,null,"（",null,"BS",null,null,{"$f":"IF(ISBLANK(Z47), \"\", Z47)","v":""},null,null,null,null,null,null,null,"mg/dl）",null,null,null,null,null,null,null,null,null,null,null,null,null,null,null,"3ヶ月以内のG-CSFの使用"]
[null,null,null,null,null,null,null,null,null,null,"※糖尿病薬剤は検査当日の使用を避けてください。\n※空腹時血糖200mg/dlを超える場合はご相談ください。",null,null,null,null,null,null,null,null,null,null,null,null,null,null,null,null,null,null,null,null,null,null,null,null,null,null,null,null,null,null,null,null,null,null,null,null,null,null,"薬剤名：",null,null,null,null,null,{"$f":"IF(ISBLANK(BD48), \"\", BD48)","v":""},null,null,null,null,null,null,null,null,null,null,null,null,null,null,null,null,"最終使用日：",null,null,null,null,null,null,null,null,{"$f":"IF(ISBLANK(CD48), \"\", CD48)","v":""},null,null,null,null,null,"年",null,{"$f":"IF(ISBLANK(CL48), \"\", CL48)","v":""},null,null,"月",null,{"$f":"IF(ISBLANK(CQ48), \"\", CQ48)","v":""},null,null,"日"]
["ﾍﾟｰｽﾒｰｶｰ",null,null,null,null,null,null,null,null,null,null,null,null,null,null,null,null,null,null,null,null,null,null,null,null,null,null,null,null,null,null,null,null,"妊　娠",null,null,null,null,null,null,null,null,null,null,null,null,null,null,null,null,null,null,null,null,null,null,null,null,null,null,null,null,null,"現在状況"]
["体内金属",null,null,null,null,null,null,null,null,null,null,null,null,null,null,null,null,null,null,null,"（",null,{"$f":"IF(ISBLANK(W50), \"\", W50)","v":""},null,null,null,null,null,null,null,"）",null,null,"感染症",null,null,null,null,null,null,null,null,null,null,null,null,null,null,null,null,"（",null,{"$f":"IF(ISBLANK(BA50), \"\", BA50)","v":""},null,null,null,null,null,null,null,"）",null,null,"30分静止"]
["人工肛門",null,null,null,null,null,null,null,null,null,null,null,null,null,null,null,null,null,null,null,"（",null,{"$f":"IF(ISBLANK(W51), \"\", W51)","v":""},null,null,null,null,null,null,null,"）",null,null,"喘　息",null,null,null,null,null,null,null,null,null,null,null,null,null,null,null,null,null,null,null,null,null,null,null,null,null,null,null,null,null,"経口摂取",null,null,null,null,null,null,null,null,null,null,null,null,null,null,null,null,null,null,null,null,null,null,null,null,"（",null,{"$f":"IF(ISBLANK(CM51), \"\", CM51)","v":""},null,null,null,null,null,null,null,"）"]
["気管切開",null,null,null,null,null,null,null,null,null,null,null,null,null,null,null,null,null,null,null,"（",null,{"$f":"IF(ISBLANK(W52), \"\", W52)","v":""},null,null,null,null,null,null,null,"）",null,null,"ｱﾚﾙｷﾞｰ",null,null,null,null,null,null,null,null,null,null,null,null,null,null,null,null,"（",null,{"$f":"IF(ISBLANK(BA52), \"\", BA52)","v":""},null,null,null,null,null,null,null,"）",null,null,"自力歩行",null,null,null,null,null,null,null,null,null,null,null,null,null,null,null,"※自立歩行できない方は不可"]
["本診療情報提供書をご利用される場合、ゆうあいクリニックでの検査結果を直接依頼元の医療機関へ提供いたします。この取扱いについて受診者の\n同意がある場合に限り、本診療情報提供書をご利用ください。なお、特別な取扱いが必要な場合には、下記の電話番号へご連絡ください。"]
[]
["コールセンター臨床　FAX 045-548-1969 / TEL 045-540-8215"]
[]
["予約フリーダイヤル　0120-852-026"]
[]
[]
["この欄は貴院IDのご記入・エンボス印字等にご利用ください。",null,null,null,null,null,null,null,null,null,null,null,null,null,null,null,null,null,null,null,null,null,null,null,null,null,null,null,null,null,null,null,null,null,null,null,null,null,null,null,null,null,null,null,null,null,null,null,null,null,null,null,null,null,null,null,null,null,null,null,null,null,null,null,null,null,null,null,null,null,null,null,null,null,null,null,null,null,null,null,null,null,null,null,null,null,null,null,null,null,null,null,null,null,null,null,null,null,null,"＜３枚目＞"]
[{"$f":"IF(ISBLANK(A2), \"\", A2)","v":""}]
[]
[null,null,null,null,null,null,null,null,null,null,null,null,null,null,null,null,null,null,null,null,null,null,null,null,null,null,null,null,null,null,null,null,null,null,null,null,null,null,null,null,"検査予約票"]
[]
[]
[]
[null,null,null,null,null,null,null,null,null,null,null,null,null,null,null,null,null,null,null,null,null,null,null,null,null,null,null,null,null,null,null,null,null,null,null,null,null,null,null,null,"予約日時：",null,null,null,null,null,null,null,null,{"$f":"IF(ISBLANK(AX8), \"\", AX8)","v":""},null,null,null,null,null,null,null,"年",null,{"$f":"IF(ISBLANK(BH8), \"\", BH8)","v":""},null,null,null,"月",null,{"$f":"IF(ISBLANK(BN8), \"\", BN8)","v":""},null,null,null,"日",null,null,null,null,null,null,null,null,null,null,null,null,null,null,null,null,null,{"$f":"IF(ISBLANK(CJ8), \"\", CJ8)","v":""},null,null,null,"時",null,{"$f":"IF(ISBLANK(CP8), \"\", CP8)","v":""},null,null,null,"分"]
[]
["貴医療機関名",null,null,null,null,null,null,null,null,null,null,null,null,null,null,null,null,null,null,null,null,null,null,null,null,null,null,null,null,null,null,null,null,"診療科\n\n",null,null,null,null,null,null,null,null,null,null,null,null,null,null,null,null,null,null,null,null,null,null,null,null,null,null,null,null,null,null,null,null,"担当医師（フルネーム）\n\n"]
[{"$f":"IF(ISBLANK(A11), \"\", A11)","v":""},null,null,null,null,null,null,null,null,null,null,null,null,null,null,null,null,null,null,null,null,null,null,null,null,null,null,null,null,null,null,null,null,{"$f":"IF(ISBLANK(AH11), \"\", AH11)","v":""},null,null,null,null,null,null,null,null,null,null,null,null,null,null,null,null,null,null,null,null,null,null,null,null,null,null,null,null,null,null,null,null,{"$f":"IF(ISBLANK(BO11), \"\", BO11)","v":""}]
["TEL:",null,null,null,null,{"$f":"IF(ISBLANK(F12), \"\", F12)","v":""},null,null,null,null,null,"（",null,null,{"$f":"IF(ISBLANK(O12), \"\", O12)","v":""},null,null,null,null,null,null,null,"）",null,{"$f":"IF(ISBLANK(Y12), \"\", Y12)","v":""}]
[]
[null,null,null,null,null,null,null,null,null,null,null,null,null,null,null,null,null,null,null,null,null,null,null,null,"（頭頂部から大腿基部まで）",null,null,null,null,null,null,null,null,null,null,null,null,null,null,null,null,null,null,null,null,null,null,null,null,null,null,null,null,null,null,null,"※PET/CT装置の特性上、吸収補正は低線量CTで減弱補正を行います。 "]
[]
[]
[]
[]
[null,null,null,null,null,null,null,null,null,null,"※複数部位選択可能",null,null,null,null,null,null,null,null,null,null,null,null,null,null,null,null,null,null,null,null,null,null,null,null,null,null,null,null,null,null,null,null,null,null,null,null,null,null,null,null,null,null,null,null,null,null,null,null,null,null,null,null,null,null,null,null,null,null,null,null,null,null,null,null,null,null,null,"（",null,{"$f":"IF(ISBLANK(CC19), \"\", CC19)","v":""},null,null,null,null,null,null,null,null,null,null,null,null,null,null,null,null,"）"]
[]
[]
["受診結果DISK",null,null,null,null,null,null,null,null,null,null,null,null,null,null,null,null,null,null,null,null,null,null,null,null,null,null,null,null,null,null,null,null,"※ご不要の場合にはご連絡ください。"]
[]
[]
[]
["ふりがな",null,null,null,null,null,null,null,null,null,{"$f":"IF(ISBLANK(K26), \"\", K26)","v":""},null,null,null,null,null,null,null,null,null,null,null,null,null,null,null,null,null,null,null,null,null,null,null,null,null,null,null,null,null,"性　別",null,null,null,null,null,"住所",null,null,null,null,"〒",null,{"$f":"IF(ISBLANK(BB26), \"\", BB26)","v":""},null,null,null,null,null,"―",null,{"$f":"IF(ISBLANK(BJ26), \"\", BJ26)","v":""}]
["患者様名",null,null,null,null,null,null,null,null,null,{"$f":"IF(ISBLANK(K27), \"\", K27)","v":""},null,null,null,null,null,null,null,null,null,null,null,null,null,null,null,null,null,null,null,null,null,null,null,null,null,"様",null,null,null,null,null,null,null,null,null,{"$f":"IF(ISBLANK(AU27), \"\", AU27)","v":""}]
[]
["生年月日"]
[null,null,null,null,null,null,null,null,null,null,null,null,null,null,null,null,null,null,null,null,null,null,{"$f":"IF(ISBLANK(W30), \"\", W30)","v":""},null,null,null,null,null,null,null,null,"年",null,null,{"$f":"IF(ISBLANK(AI30), \"\", AI30)","v":""},null,null,"月",null,null,{"$f":"IF(ISBLANK(AO30), \"\", AO30)","v":""},null,null,"日",null,null,"TEL：",null,null,null,null,{"$f":"IF(ISBLANK(AZ30), \"\", AZ30)","v":""},null,null,null,null,"（",null,{"$f":"IF(ISBLANK(BG30), \"\", BG30)","v":""},null,null,null,null,null,null,"）",null,{"$f":"IF(ISBLANK(BP30), \"\", BP30)","v":""},null,null,null,null,null,null,"携帯：",null,null,null,null,{"$f":"IF(ISBLANK(CB30), \"\", CB30)","v":""},null,null,null,null,"（",null,{"$f":"IF(ISBLANK(CI30), \"\", CI30)","v":""},null,null,null,null,null,null,"）",null,{"$f":"IF(ISBLANK(CR30), \"\", CR30)","v":""}]
[]
["■検査当日にお持ちいただくもの",null,null,null,null,null,null,null,null,null,null,null,null,null,null,null,null,null,null,null,null,null,null,null,null,null,null,null,null,null,null,null,null,null,null,null,null,null,null,null,null,null,null,null,null,null,null,null,null,null,null,null,null,null,null,null,null,null,"■アクセス"]
[]
[" 健康保険証、各種受給者証\n （高齢受給者証など）",null,null,null,null,null,null,null,null,null,null,null,null,null,null,null,null,null,null,null,null,null,null,null,null,null,null,null,null," 問診票・検査同意書\n（検査当日までにご記入ください）"]
[" 主治医からお預かりになった診療情報\n 提供書（紹介状）、ＣＴやＭＲＩなど\n のDISK（フィルム）",null,null,null,null,null,null,null,null,null,null,null,null,null,null,null,null,null,null,null,null,null,null,null,null,null,null,null,null," 検査料金"]
[]
["■検査にあたってのご注意\n・予約時刻の10分前にはご来院ください。\n・当クリニックでは検査結果についての説明は行いません。"]
["■PET検査に当たってのご注意\n①ご予約時間の５時間前から絶食してください（水・無糖のお茶は可）\n②検査当日は糖尿病のお薬（飲み薬・注射薬）の使用を中止してください。\n③検査前日から、下剤（酸化マグネシウム、マグラックスを除く）の服用を\n中止してください。\n④検査前日から激しい運動はお避け下さい。\n⑤まれに検査終了時間が１時間ほど延長となる場合があります。　　　　　　"]
["■CT検査（上腹部・骨盤部）にあたってのご注意\n・上記PET検査に当たってのご注意①②を順守してください。 "]
[]
[]
[]
["　　　　　　"]